bitfinex-derivatives/quotes_BNBF0:USTF0_20251027
["timestamp","ask_amount","ask_price","bid_price","bid_amount"]
[1761549262666,2.1611392,1160.1,1158.3,1.547]
[1761549263669,2.1611392,1160.1,1158.3,3.367]
[1761549266168,2.1611392,1159.8,1158.3,3.367]
[1761549267773,2.1611392,1159.9,1158.3,3.367]
[1761549268473,3.0255949,1160.2,1158.3,3.367]
[1761549268474,2.1611392,1159.7,1158.3,3.367]
[1761549268875,2.1611392,1159.6,1158.3,3.367]
[1761549269870,2.1611392,1159.6,1158.3,1.82]
[1761549270371,2.1611392,1159.7,1158.3,1.82]
[1761549271072,3.0255949,1160.1,1158.3,1.82]
[1761549271878,2.1611392,1160.3,1158.3,1.82]
[1761549272479,2.1611392,1159.6,1158.3,1.82]
[1761549273379,2.1611392,1159.6,1158.4,1.47]
[1761549275779,2.1611392,1159.5,1158.4,1.47]
[1761549276079,2.1611392,1159.2,1158.4,1.47]
[1761549276575,2.1611392,1159.3,1158.4,1.47]
[1761549279886,2.1611392,1159.4,1158.4,1.47]
[1761549280286,2.1611392,1159.7,1158.4,1.47]
[1761549280686,2.1611392,1159.8,1158.4,1.47]
[1761549281285,2.1611392,1159.7,1158.4,1.47]
[1761549281682,2.1611392,1159.8,1158.4,1.47]
[1761549282388,2.1611392,1159.7,1158.4,1.47]
[1761549284491,2.1611392,1159.8,1158.4,1.47]
[1761549285290,2.1611392,1159.9,1158.4,1.47]
[1761549285793,2.1611392,1160.3,1158.4,1.47]
[1761549286193,5.1867341,1160.4,1158.4,1.47]
[1761549286391,2.1611392,1160.4,1158.4,1.47]
[1761549290396,2.1611392,1160.3,1158.4,1.47]
[1761549290892,2.1611392,1160.4,1158.4,1.47]
[1761549294098,2.1611392,1160.5,1158.4,1.47]
[1761549294599,2.1611392,1160.4,1158.4,1.47]
[1761549294998,2.1611392,1160.3,1158.4,1.47]
[1761549295600,2.1611392,1159.9,1158.4,1.47]
[1761549296502,2.1611392,1160.0,1158.4,1.47]
[1761549297400,2.1611392,1160.0,1158.3,1.82]
[1761549298607,2.1611392,1159.9,1158.3,1.82]
[1761549299803,2.1611392,1160.3,1158.3,1.82]
[1761549300201,0.15011485,1160.9,1158.3,1.82]
[1761549301204,2.1611392,1159.7,1158.3,1.82]
[1761549302309,2.1611392,1159.8,1158.3,1.82]
[1761549303006,2.1611392,1159.6,1158.3,1.82]
[1761549303407,2.1611392,1159.5,1158.3,1.82]
[1761549304912,3.0255949,1160.1,1158.3,1.82]
[1761549305207,0.15011485,1160.9,1158.3,1.82]
[1761549305812,2.1611392,1159.5,1158.3,1.82]
[1761549306308,2.1611392,1159.6,1158.3,1.82]
[1761549307512,2.1611392,1159.5,1158.3,1.82]
[1761549308115,2.1611392,1159.2,1158.3,1.82]
[1761549308417,2.1611392,1159.4,1158.3,1.82]
[1761549308617,2.1611392,1159.4,1157.8,1.764]
[1761549308919,2.1611392,1159.7,1157.8,1.764]
[1761549309420,2.1611392,1160.0,1157.8,1.764]
[1761549310021,5.1867341,1160.3,1157.8,1.764]
[1761549310317,2.1611392,1160.3,1157.8,1.764]
[1761549310517,2.1611392,1160.4,1157.8,1.764]
[1761549313227,2.1611392,1159.8,1157.8,1.764]
[1761549313727,2.1611392,1159.9,1157.8,1.764]
[1761549315630,2.1611392,1160.3,1157.8,1.764]
[1761549316831,2.1611392,1160.1,1157.8,1.764]
[1761549319835,2.1611392,1160.0,1157.8,1.764]
[1761549321136,2.1611392,1159.7,1157.8,1.764]
[1761549322739,2.1611392,1159.6,1157.8,1.764]
[1761549323640,2.1611392,1159.8,1157.8,1.764]
[1761549323940,2.1611392,1159.3,1157.8,1.764]
[1761549324338,3.0255949,1160.4,1157.8,1.764]
[1761549324339,2.1611392,1158.9,1157.8,1.764]
[1761549324741,2.1611392,1159.0,1157.8,1.764]
[1761549325236,2.1611392,1158.9,1157.8,1.764]
[1761549325840,2.1611392,1159.1,1157.8,1.764]
[1761549327439,2.1611392,1159.0,1157.8,1.764]
[1761549327842,2.1611392,1159.0,1157.3,1.354]
[1761549328542,2.1611392,1158.9,1157.3,1.354]
[1761549330643,2.1611392,1158.9,1157.4,1.861]
[1761549331541,2.1611392,1158.8,1157.4,1.861]
[1761549335553,2.1611392,1158.9,1157.4,1.861]
[1761549336045,2.1611392,1160.2,1157.4,1.861]
[1761549336643,2.1611392,1160.3,1157.4,1.861]
[1761549337246,2.1611392,1160.6,1157.4,1.861]
[1761549337548,2.1611392,1160.6,1157.5,0.56717318]
[1761549337745,0.15011485,1160.9,1157.4,1.861]
[1761549337947,0.15011485,1160.9,1157.5,0.56714812]
[1761549338149,0.15011485,1160.9,1157.4,1.861]
[1761549338347,0.15011485,1160.9,1157.5,0.56661014]
[1761549338548,0.15011485,1160.9,1157.4,1.861]
[1761549339644,2.1611392,1160.8,1157.4,1.861]
[1761549340250,0.15011485,1160.9,1157.4,1.861]
[1761549341250,2.1611392,1160.6,1157.5,0.56553113]
[1761549341450,2.1611392,1160.6,1157.6,0.56553113]
[1761549341652,2.1611392,1160.5,1157.4,1.861]
[1761549341849,2.1611392,1160.5,1157.5,0.56478769]
[1761549342050,2.1611392,1160.5,1157.6,0.56478769]
[1761549342249,5.1867341,1160.8,1157.4,1.861]
[1761549342549,2.1611392,1160.8,1157.5,0.56429005]
[1761549342853,0.15011485,1160.9,1157.6,0.56429005]
[1761549343049,0.15011485,1160.9,1157.4,1.861]
[1761549343248,0.15011485,1160.9,1157.5,0.56389837]
[1761549343448,0.15011485,1160.9,1157.4,1.861]
[1761549343449,0.15011485,1160.9,1157.6,0.56389837]
[1761549343653,0.15011485,1160.9,1157.7,0.56389837]
[1761549343953,0.15011485,1160.9,1157.4,1.861]
[1761549344250,0.15011485,1160.9,1157.5,0.56375085]
[1761549344453,0.15011485,1160.9,1157.6,0.56375085]
[1761549344650,0.15011485,1160.9,1157.7,0.56375085]
[1761549344851,0.15011485,1160.9,1157.4,1.861]
[1761549345049,0.15011485,1160.9,1157.5,0.56333789]
[1761549345253,0.15011485,1160.9,1157.6,0.56333789]
[1761549345450,0.15011485,1160.9,1157.7,0.56333789]
[1761549345649,0.15011485,1160.9,1157.4,1.861]
[1761549345855,0.15011485,1160.9,1157.5,0.56296397]
[1761549346051,0.15011485,1160.9,1157.6,0.56296397]
[1761549346250,0.15011485,1160.9,1157.7,0.56296397]
[1761549346554,0.15011485,1160.9,1157.4,1.861]
[1761549346755,0.15011485,1160.9,1157.5,0.56256895]
[1761549346953,0.15011485,1160.9,1157.6,0.56256895]
[1761549347151,0.15011485,1160.9,1157.7,0.56256895]
[1761549347354,0.15011485,1160.9,1157.4,1.861]
[1761549347650,0.15011485,1160.9,1157.5,0.56220624]
[1761549347851,0.15011485,1160.9,1157.6,0.56220624]
[1761549348052,0.15011485,1160.9,1157.7,0.56220624]
[1761549348355,0.15011485,1160.9,1157.4,1.861]
[1761549348556,0.15011485,1160.9,1157.5,0.56190235]
[1761549348755,0.15011485,1160.9,1157.6,0.56190235]
[1761549349055,0.15011485,1160.9,1157.7,0.56190235]
[1761549349355,0.15011485,1160.9,1157.4,1.861]
[1761549349658,0.15011485,1160.9,1157.5,0.56160865]
[1761549349855,0.15011485,1160.9,1157.4,1.861]
[1761549349856,0.15011485,1160.9,1157.6,0.56160865]
[1761549350057,0.15011485,1160.9,1157.7,0.56160865]
[1761549350252,0.15011485,1160.9,1157.4,1.861]
[1761549350457,0.15011485,1160.9,1157.5,0.56130997]
[1761549350652,0.15011485,1160.9,1157.6,0.56130997]
[1761549350853,0.15011485,1160.9,1157.7,0.56130997]
[1761549351057,0.15011485,1160.9,1157.4,1.861]
[1761549351353,0.15011485,1160.9,1157.5,0.56114047]
[1761549351554,0.15011485,1160.9,1157.6,0.56114047]
[1761549351753,0.15011485,1160.9,1157.4,1.861]
[1761549351953,0.15011485,1160.9,1157.5,0.56105047]
[1761549352253,0.15011485,1160.9,1157.6,0.56105047]
[1761549352451,0.15011485,1160.9,1157.4,1.861]
[1761549352654,0.15011485,1160.9,1157.5,0.56081825]
[1761549352857,0.15011485,1160.9,1157.6,0.56081825]
[1761549353153,0.15011485,1160.9,1157.4,1.861]
[1761549353356,0.15011485,1160.9,1157.5,0.56059164]
[1761549353559,0.15011485,1160.9,1157.6,0.56059164]
[1761549353756,0.15011485,1160.9,1157.4,1.861]
[1761549353955,0.15011485,1160.9,1157.5,0.56059148]
[1761549354159,0.15011485,1160.9,1157.6,0.56059148]
[1761549354360,0.15011485,1160.9,1157.4,1.861]
[1761549354560,0.15011485,1160.9,1157.5,0.5603619]
[1761549354754,0.15011485,1160.9,1157.6,0.5603619]
[1761549354955,0.15011485,1160.9,1157.4,1.861]
[1761549355156,0.15011485,1160.9,1157.5,0.5603619]
[1761549355459,0.15011485,1160.9,1157.6,0.5603619]
[1761549355660,0.15011485,1160.9,1157.7,1.767]
[1761549357461,0.15011485,1160.9,1157.8,0.55970525]
[1761549357664,0.15011485,1160.9,1157.7,1.767]
[1761549357957,0.15011485,1160.9,1157.8,0.55970525]
[1761549358155,0.15011485,1160.9,1157.9,0.55970525]
[1761549358358,0.15011485,1160.9,1157.7,1.767]
[1761549358662,0.15011485,1160.9,1157.8,0.5593614]
[1761549358957,0.15011485,1160.9,1157.9,0.5593614]
[1761549359157,0.15011485,1160.9,1158.0,0.5593614]
[1761549359358,0.15011485,1160.9,1158.1,0.5593614]
[1761549359558,0.15011485,1160.9,1157.7,1.767]
[1761549359857,0.15011485,1160.9,1157.8,0.55884268]
[1761549360057,0.15011485,1160.9,1157.9,2.41884268]
[1761549360257,0.15011485,1160.9,1158.0,0.55884268]
[1761549360460,0.15011485,1160.9,1158.1,2.44384268]
[1761549360659,0.15011485,1160.9,1158.1,1.885]
[1761549361762,0.15011485,1160.9,1158.2,0.55848969]
[1761549361963,0.15011485,1160.9,1158.3,0.55848969]
[1761549362261,0.15011485,1160.9,1158.1,1.885]
[1761549362460,0.15011485,1160.9,1158.2,0.55798442]
[1761549362658,0.15011485,1160.9,1158.3,0.55798442]
[1761549362957,0.15011485,1160.9,1158.1,1.885]
[1761549363162,0.15011485,1160.9,1158.2,0.55798324]
[1761549363362,0.15011485,1160.9,1158.3,0.55798324]
[1761549363558,0.15011485,1160.9,1158.1,1.885]
[1761549363760,0.15011485,1160.9,1158.2,0.55772647]
[1761549363958,0.15011485,1160.9,1158.3,0.55772647]
[1761549364163,0.15011485,1160.9,1158.1,1.885]
[1761549364361,0.15011485,1160.9,1158.2,0.5574957]
[1761549364560,0.15011485,1160.9,1158.3,0.5574957]
[1761549364760,0.15011485,1160.9,1158.1,1.885]
[1761549364962,0.15011485,1160.9,1158.2,0.55652577]
[1761549365162,0.15011485,1160.9,1158.1,1.885]
[1761549365362,0.15011485,1160.9,1158.2,0.5563928]
[1761549365561,0.15011485,1160.9,1158.3,0.55638376]
[1761549365866,0.15011485,1160.9,1158.1,1.885]
[1761549366062,0.15011485,1160.9,1158.2,0.55619194]
[1761549366265,0.15011485,1160.9,1158.3,0.556148]
[1761549366562,0.15011485,1160.9,1158.1,1.885]
[1761549366763,0.15011485,1160.9,1158.2,0.5561684]
[1761549366959,0.15011485,1160.9,1158.1,1.885]
[1761549367161,0.15011485,1160.9,1158.2,0.55631686]
[1761549367366,0.15011485,1160.9,1158.1,1.885]
[1761549367667,0.15011485,1160.9,1158.2,0.55620569]
[1761549367865,0.15011485,1160.9,1158.1,1.885]
[1761549368062,0.15011485,1160.9,1158.2,0.5562053]
[1761549368263,0.15011485,1160.9,1158.1,1.885]
[1761549368462,0.15011485,1160.9,1158.2,0.55617977]
[1761549368760,0.15011485,1160.9,1158.1,1.885]
[1761549368962,0.15011485,1160.9,1158.2,0.55617961]
[1761549369263,0.15011485,1160.9,1158.1,1.885]
[1761549369462,0.15011485,1160.9,1158.2,0.55608941]
[1761549369663,0.15011485,1160.9,1158.1,1.885]
[1761549369966,0.15011485,1160.9,1158.2,0.55608806]
[1761549370165,0.15011485,1160.9,1158.1,1.885]
[1761549370366,0.15011485,1160.9,1158.2,0.55612938]
[1761549370565,0.15011485,1160.9,1158.1,1.885]
[1761549370767,0.15011485,1160.9,1158.2,0.55614444]
[1761549370967,0.15011485,1160.9,1158.1,1.885]
[1761549371169,0.15011485,1160.9,1158.2,0.55605931]
[1761549371371,0.15011485,1160.9,1158.1,1.885]
[1761549371569,0.15011485,1160.9,1158.2,0.55621841]
[1761549371767,0.15011485,1160.9,1158.1,1.885]
[1761549371967,0.15011485,1160.9,1158.2,0.55621821]
[1761549372166,0.15011485,1160.9,1158.1,1.885]
[1761549372470,0.15011485,1160.9,1158.2,0.55631756]
[1761549372669,0.15011485,1160.9,1158.1,1.885]
[1761549372867,0.15011485,1160.9,1158.2,0.55631664]
[1761549373171,0.15011485,1160.9,1158.1,1.885]
[1761549373368,0.15011485,1160.9,1158.2,0.55658236]
[1761549373669,0.15011485,1160.9,1158.1,1.885]
[1761549373866,0.15011485,1160.9,1158.2,0.55658236]
[1761549374066,0.15011485,1160.9,1158.1,1.885]
[1761549374267,0.15011485,1160.9,1158.2,0.55672988]
[1761549374467,0.15011485,1160.9,1158.1,1.885]
[1761549374671,0.15011485,1160.9,1158.2,0.55673109]
[1761549374966,0.15011485,1160.9,1158.3,0.55686175]
[1761549375171,0.15011485,1160.9,1158.4,0.55686175]
[1761549375369,0.15011485,1160.9,1158.1,1.885]
[1761549375567,0.15011485,1160.9,1158.2,0.55703318]
[1761549375773,0.15011485,1160.9,1158.3,0.55703318]
[1761549375966,0.15011485,1160.9,1158.4,0.55703318]
[1761549376167,0.15011485,1160.9,1158.1,1.885]
[1761549376367,0.15011485,1160.9,1158.2,0.55718977]
[1761549376567,0.15011485,1160.9,1158.3,0.55718977]
[1761549376773,0.15011485,1160.9,1158.4,0.55718977]
[1761549376972,0.15011485,1160.9,1158.5,0.55718977]
[1761549377272,0.15011485,1160.9,1158.6,0.55718977]
[1761549377472,0.15011485,1160.9,1158.7,0.55718977]
[1761549377671,0.15011485,1160.9,1158.8,0.55718977]
[1761549377971,0.15011485,1160.9,1158.4,0.63197467]
[1761549378270,0.15011485,1160.9,1158.5,0.55635665]
[1761549378474,0.15011485,1160.9,1158.6,0.55635665]
[1761549378670,0.15011485,1160.9,1158.7,0.55635665]
[1761549378873,0.15011485,1160.9,1158.2,0.63197467]
[1761549379074,0.15011485,1160.9,1158.3,0.55678753]
[1761549379374,0.15011485,1160.9,1158.4,0.55678753]
[1761549379674,0.15011485,1160.9,1158.1,1.885]
[1761549380174,0.15011485,1160.9,1158.2,1.274]
[1761549384377,2.1611392,1162.7,1158.2,1.274]
[1761549384679,0.15008313,1160.3,1158.2,1.274]
[1761549384877,2.1611392,1162.6,1158.2,1.274]
[1761549385178,0.15007439,1160.4,1158.3,0.55586131]
[1761549385377,0.15007439,1160.4,1158.2,1.274]
[1761549385582,2.1611392,1162.2,1158.3,0.55560947]
[1761549385877,0.15007018,1160.4,1158.4,0.55560947]
[1761549386081,0.15007018,1160.4,1158.2,1.274]
[1761549386082,2.1611392,1162.2,1158.2,1.274]
[1761549386378,0.15007989,1161.3,1158.3,0.55591746]
[1761549386577,0.15007989,1161.3,1158.4,0.55591746]
[1761549386881,0.15007989,1161.3,1158.2,1.274]
[1761549387178,0.15007989,1161.3,1158.3,0.55589806]
[1761549387379,0.15007989,1161.3,1158.2,1.274]
[1761549387580,0.15007989,1161.3,1158.3,0.55639585]
[1761549387775,0.15007989,1161.3,1158.2,1.274]
[1761549387981,0.15007989,1161.3,1158.3,0.55639532]
[1761549388181,0.15007989,1161.3,1158.2,1.274]
[1761549389682,0.15007989,1161.3,1158.3,1.615]
[1761549391287,2.31121909,1161.3,1158.3,1.615]
[1761549392290,2.1611392,1161.2,1158.3,1.615]
[1761549392585,5.1867341,1161.2,1158.3,1.615]
[1761549393083,2.1611392,1161.0,1158.3,1.615]
[1761549394892,0.15007989,1161.3,1158.3,1.615]
[1761549395487,2.1611392,1160.6,1158.3,1.615]
[1761549395886,2.1611392,1160.7,1158.3,1.615]
[1761549396488,2.1611392,1160.8,1158.3,1.615]
[1761549397391,2.1611392,1160.7,1158.3,1.615]
[1761549398394,2.1611392,1160.8,1158.3,1.615]
[1761549399492,2.1611392,1160.6,1158.3,1.615]
[1761549399993,3.0255949,1161.2,1158.3,1.615]
[1761549400893,2.31121909,1161.3,1158.3,1.615]
[1761549402097,0.15007989,1161.3,1158.3,1.615]
[1761549402394,0.15007989,1161.3,1158.4,1.474]
[1761549405594,2.1611392,1161.0,1158.4,1.474]
[1761549406097,2.1611392,1160.9,1158.4,1.474]
[1761549406593,2.1611392,1160.6,1158.4,1.474]
[1761549408201,2.1611392,1160.9,1158.4,1.474]
[1761549409703,2.1611392,1161.0,1158.4,1.474]
[1761549410197,2.1611392,1160.3,1158.4,1.474]
[1761549411502,2.1611392,1160.4,1158.4,1.474]
[1761549414903,2.1611392,1160.4,1158.5,1.317]
[1761549415102,3.0255949,1160.7,1158.5,1.317]
[1761549415607,6.59616729,1161.3,1158.5,1.317]
[1761549416206,2.1611392,1161.1,1158.5,1.317]
[1761549416806,2.1611392,1160.7,1158.5,1.317]
[1761549418111,2.1611392,1160.7,1158.6,1.784]
[1761549418410,2.1611392,1160.1,1158.6,1.784]
[1761549418911,2.1611392,1160.0,1158.6,1.784]
[1761549421307,2.1611392,1160.0,1158.6,1.784]
[1761549421512,2.1611392,1160.8,1158.6,1.784]
[1761549421913,2.1611392,1161.1,1158.6,1.784]
[1761549423014,0.15007989,1161.3,1158.6,1.784]
[1761549424610,0.15007989,1161.3,1158.7,0.56129156]
[1761549424815,0.15007989,1161.3,1158.6,1.784]
[1761549425013,0.15007989,1161.3,1158.7,0.56129005]
[1761549425212,0.15007989,1161.3,1158.6,1.784]
[1761549428213,2.31121909,1161.3,1158.6,1.784]
[1761549429519,2.31121909,1161.3,1158.7,1.272]
[1761549429918,0.15007989,1161.3,1158.7,1.272]
[1761549431122,0.15007989,1161.3,1158.8,0.56105032]
[1761549431417,0.15007989,1161.3,1158.7,1.272]
[1761549431617,0.15007989,1161.3,1158.8,0.56084093]
[1761549431921,0.15007989,1161.3,1158.7,1.272]
[1761549432121,0.15007989,1161.3,1158.8,0.5608398]
[1761549432322,0.15007989,1161.3,1158.7,1.272]
[1761549432518,0.15007989,1161.3,1158.8,0.56065614]
[1761549432722,0.15007989,1161.3,1158.7,1.272]
[1761549432921,0.15007989,1161.3,1158.8,0.56066897]
[1761549433122,0.15007989,1161.3,1158.7,1.272]
[1761549433418,0.15007989,1161.3,1158.8,0.56062209]
[1761549433618,0.15007989,1161.3,1158.7,1.272]
[1761549433919,0.15007989,1161.3,1158.8,0.56048478]
[1761549434118,0.15007989,1161.3,1158.7,1.272]
[1761549434326,0.15007989,1161.3,1158.8,0.56044911]
[1761549434520,0.15007989,1161.3,1158.7,1.272]
[1761549434721,0.15007989,1161.3,1158.8,0.5603255]
[1761549435022,0.15007989,1161.3,1158.7,1.272]
[1761549435721,2.1611392,1161.0,1158.7,1.272]
[1761549436725,5.33681399,1161.3,1158.7,1.272]
[1761549437331,0.15007989,1161.3,1158.7,1.272]
[1761549438029,0.15007989,1161.3,1158.8,1.436]
[1761549445536,0.15007989,1161.3,1158.9,1.755]
[1761549448640,2.1611392,1160.8,1158.9,1.755]
[1761549450241,2.1611392,1160.9,1158.9,1.755]
[1761549450843,2.1611392,1161.0,1158.9,1.755]
[1761549451244,2.1611392,1161.1,1158.9,1.755]
[1761549454242,2.1611392,1161.2,1158.9,1.755]
[1761549454848,2.31121909,1161.3,1158.9,1.755]
[1761549458948,0.15007989,1161.3,1158.9,1.755]
[1761549461448,0.15007989,1161.3,1159.0,1.282]
[1761549462045,2.1611392,1161.1,1159.0,1.282]
[1761549463250,2.1611392,1161.2,1159.0,1.282]
[1761549464250,2.1611392,1161.0,1159.0,1.282]
[1761549464653,2.1611392,1160.8,1159.0,1.282]
[1761549465253,2.1611392,1161.0,1159.0,1.282]
[1761549465753,2.1611392,1160.8,1159.0,1.282]
[1761549466654,2.1611392,1160.9,1159.0,1.282]
[1761549467250,2.1611392,1161.0,1159.0,1.282]
[1761549467453,2.1611392,1161.0,1159.1,3.636]
[1761549468656,2.1611392,1161.1,1159.1,3.636]
[1761549471460,0.15007989,1161.3,1159.1,3.636]
[1761549472556,0.15007989,1161.3,1159.2,2.029]
[1761549477059,2.1611392,1161.2,1159.2,2.029]
[1761549479261,2.1611392,1161.1,1159.2,2.029]
[1761549480261,2.1611392,1161.0,1159.2,2.029]
[1761549481166,2.1611392,1160.2,1159.2,2.029]
[1761549482467,2.1611392,1159.9,1159.2,2.029]
[1761549482866,3.0255949,1160.4,1159.2,2.029]
[1761549483067,2.1611392,1160.5,1159.2,2.029]
[1761549483868,2.1611392,1160.7,1159.2,2.029]
[1761549485370,2.1611392,1160.5,1159.2,2.029]
[1761549485872,3.0255949,1161.2,1159.2,2.029]
[1761549485873,2.1611392,1161.0,1159.2,2.029]
[1761549486469,2.1611392,1160.2,1159.2,2.029]
[1761549487470,2.1611392,1160.0,1159.2,2.029]
[1761549487675,2.1611392,1160.0,1159.1,3.636]
[1761549488071,2.1611392,1159.9,1159.1,3.636]
[1761549488675,2.1611392,1160.3,1159.1,3.636]
[1761549489175,2.1611392,1160.7,1159.1,3.636]
[1761549490571,0.15007989,1161.3,1159.1,3.636]
[1761549490572,2.1611392,1160.8,1159.1,3.636]
[1761549491673,2.1611392,1160.9,1159.1,3.636]
[1761549492470,2.1611392,1160.9,1159.1,1.891]
[1761549495076,2.1611392,1160.9,1159.2,1.458]
[1761549495274,2.1611392,1160.8,1159.2,1.458]
[1761549495574,2.1611392,1160.4,1159.2,1.458]
[1761549496676,2.1611392,1160.5,1159.2,1.458]
[1761549497579,2.1611392,1160.6,1159.2,1.458]
[1761549498076,2.1611392,1160.4,1159.2,1.458]
[1761549499580,2.1611392,1160.5,1159.2,1.458]
[1761549500686,2.1611392,1160.6,1159.2,1.458]
[1761549502390,2.1611392,1160.7,1159.2,1.458]
[1761549502883,2.1611392,1160.8,1159.2,1.458]
[1761549503690,2.1611392,1160.7,1159.2,1.458]
[1761549505292,2.1611392,1160.8,1159.2,1.458]
[1761549506391,2.1611392,1160.3,1159.2,1.458]
[1761549508088,2.1611392,1160.5,1159.2,1.458]
[1761549510995,2.1611392,1160.4,1159.2,1.458]
[1761549514000,2.1611392,1160.4,1158.8,1.663]
[1761549514298,2.1611392,1160.9,1158.8,1.663]
[1761549514496,2.1611392,1160.9,1158.6,2.071]
[1761549515698,0.15007989,1161.3,1158.6,2.071]
[1761549516901,0.15007989,1161.3,1158.6,3.58]
[1761549517199,0.15007989,1161.3,1158.7,1.957]
[1761549521500,2.1611392,1160.2,1158.7,1.957]
[1761549522001,3.0255949,1160.7,1158.7,1.957]
[1761549522604,2.1611392,1160.8,1158.7,1.957]
[1761549527807,2.1611392,1161.0,1158.7,1.957]
[1761549528303,2.1611392,1160.6,1158.7,1.957]
[1761549528703,2.1611392,1160.5,1158.7,1.957]
[1761549529303,2.1611392,1160.4,1158.7,1.957]
[1761549529807,2.1611392,1160.7,1158.7,1.957]
[1761549531008,2.1611392,1160.5,1158.7,1.957]
[1761549532509,2.1611392,1160.4,1158.7,1.957]
[1761549537709,2.1611392,1160.3,1158.7,1.957]
[1761549538911,2.1611392,1160.1,1158.7,1.957]
[1761549541316,2.1611392,1160.0,1158.7,1.957]
[1761549542516,2.1611392,1159.5,1158.7,0.45022606]
[1761549543015,2.1611392,1159.4,1158.7,0.45022606]
[1761549544013,2.1611392,1159.5,1158.7,0.45022606]
[1761549544414,2.1611392,1159.4,1158.7,0.45022606]
[1761549545114,2.1611392,1159.5,1158.7,0.45022606]
[1761549547017,3.0255949,1159.9,1158.7,0.45022606]
[1761549547420,3.0255949,1159.9,1158.6,1.509]
[1761549547616,2.1611392,1160.1,1158.6,1.509]
[1761549549618,2.1611392,1160.6,1158.6,1.509]
[1761549554025,2.1611392,1160.6,1158.5,2.151]
[1761549555223,2.1611392,1160.5,1158.5,2.151]
[1761549556926,2.1611392,1160.8,1158.5,2.151]
[1761549557225,2.1611392,1160.4,1158.5,2.151]
[1761549557924,2.1611392,1160.1,1158.5,2.151]
[1761549558324,2.1611392,1160.0,1158.5,2.151]
[1761549558725,2.1611392,1160.8,1158.5,2.151]
[1761549559422,2.1611392,1160.4,1158.5,2.151]
[1761549559824,0.15007989,1161.3,1158.5,2.151]
[1761549559825,2.1611392,1160.5,1158.5,2.151]
[1761549560222,2.1611392,1160.4,1158.5,2.151]
[1761549560822,2.1611392,1160.7,1158.5,2.151]
[1761549561028,2.1611392,1160.9,1158.5,2.151]
[1761549561523,2.1611392,1161.0,1158.5,2.151]
[1761549562027,2.1611392,1161.2,1158.5,2.151]
[1761549562223,2.1611392,1161.2,1158.6,0.57566798]
[1761549562428,0.15007989,1161.3,1158.5,2.151]
[1761549562628,0.15007989,1161.3,1158.6,0.57564804]
[1761549562828,0.15007989,1161.3,1158.5,2.151]
[1761549563028,0.15007989,1161.3,1158.6,0.57564851]
[1761549563228,0.15007989,1161.3,1158.5,2.151]
[1761549563425,0.15007989,1161.3,1158.5,0.784]
[1761549564130,2.1611392,1160.9,1158.5,0.784]
[1761549564527,2.1611392,1160.7,1158.5,0.784]
[1761549566026,2.1611392,1160.9,1158.5,0.784]
[1761549566627,2.1611392,1160.9,1158.6,2.156]
[1761549567633,2.1611392,1161.1,1158.6,2.156]
[1761549569235,2.31121909,1161.3,1158.6,2.156]
[1761549570229,0.15007989,1161.3,1158.6,2.156]
[1761549574939,2.1611392,1160.6,1158.6,2.156]
[1761549575344,2.1611392,1160.2,1158.6,2.156]
[1761549575845,2.1611392,1161.0,1158.7,0.784]
[1761549577848,2.1611392,1160.7,1158.7,0.784]
[1761549578446,2.1611392,1160.5,1158.7,0.784]
[1761549579948,2.1611392,1160.3,1158.7,0.784]
[1761549580745,0.15007989,1161.3,1158.7,0.784]
[1761549581144,0.15007989,1161.3,1158.8,1.967]
[1761549586257,2.1611392,1162.0,1158.8,1.967]
[1761549586553,0.15008378,1160.7,1158.8,1.967]
[1761549586856,2.1611392,1162.1,1158.8,1.967]
[1761549587056,0.15007601,1160.3,1158.8,1.967]
[1761549587352,2.1611392,1162.1,1158.8,1.967]
[1761549587753,0.15008022,1160.3,1158.8,1.967]
[1761549587957,2.1611392,1162.1,1158.8,1.967]
[1761549588256,0.15009413,1160.1,1158.8,1.967]
[1761549588455,2.1611392,1161.8,1158.8,1.967]
[1761549588654,0.15009413,1160.1,1158.8,1.967]
[1761549589053,2.1611392,1161.8,1158.8,1.967]
[1761549589257,0.15010384,1160.1,1158.8,1.967]
[1761549589454,2.1611392,1161.8,1158.8,1.967]
[1761549589755,0.15010384,1160.1,1158.8,1.967]
[1761549590059,2.1611392,1161.8,1158.8,1.967]
[1761549590460,0.15010384,1161.1,1158.8,1.967]
[1761549593860,0.15010384,1161.1,1158.9,1.9]
[1761549596868,0.15010384,1161.1,1159.0,1.746]
[1761549604269,0.15010384,1161.1,1159.1,0.784]
[1761549604773,2.31124304,1161.1,1159.1,0.784]
[1761549606174,0.15010384,1161.1,1159.1,0.784]
[1761549613177,0.15010384,1161.1,1159.2,1.638]
[1761549622286,0.15010384,1161.1,1159.1,0.784]
[1761549625284,0.15010384,1161.1,1159.2,1.904]
[1761549627289,0.15010384,1161.1,1159.3,1.684]
[1761549628389,2.1611392,1162.8,1159.3,1.684]
[1761549628686,0.14998481,1161.4,1159.3,1.684]
[1761549628886,3.0255949,1163.5,1159.3,1.684]
[1761549628887,2.1611392,1162.9,1159.3,1.684]
[1761549629086,0.14996865,1162.0,1159.3,1.684]
[1761549631993,0.14996865,1162.0,1159.4,0.57067043]
[1761549632197,0.14996865,1162.0,1159.3,1.684]
[1761549632397,0.14996865,1162.0,1159.4,0.57038802]
[1761549632597,0.14996865,1162.0,1159.3,1.684]
[1761549632894,0.14996865,1162.0,1159.4,0.57038802]
[1761549633098,0.14996865,1162.0,1159.3,1.684]
[1761549633397,0.14996865,1162.0,1159.4,0.5701736]
[1761549633597,0.14996865,1162.0,1159.3,1.684]
[1761549633794,0.14996865,1162.0,1159.4,0.57017205]
[1761549634093,0.14996865,1162.0,1159.3,1.684]
[1761549634293,0.14996865,1162.0,1159.4,0.5701279]
[1761549634492,0.14996865,1162.0,1159.3,1.684]
[1761549634693,0.14996865,1162.0,1159.4,0.56996911]
[1761549634896,0.14996865,1162.0,1159.3,1.684]